Cogmind - Beta 9 @@@ ROGUE MODE // 2019.10.21 @ 22:37:29 Player: TheGreatBorealis Result: Destroyed by S-10 Pest with Light Assault Rifle Performance ------------- Evolutions (0) 0 Regions Visited (2) 400 Robots Destroyed (20) 100 Value Destroyed (441) 441 Prototype IDs (0) 0 Alien Tech Used (0) 0 Bonus (127) 127 TOTAL SCORE: 1068 Bonus ------- Follower Combat Kills 127 Cogmind --------- Core Integrity 0/250 Matter 300/300 Energy 158/160 System Corruption 0% Temperature Cool (19) Location -10/Mines Parts ------- Power (1) Light Nuclear Core Propulsion (2) Aluminum Leg Aluminum Leg Utility (2) Medium Storage Unit Signal Interpreter Weapon (2) EM Pulse Gun Inventory (8) Light Ion Engine Aluminum Leg Aluminum Leg Improved Heat Sink Improved Heat Sink Improved Heat Sink Large Storage Unit Mining Laser Peak State ------------ Power Ion Engine Propulsion Aluminum Leg Carbon-fiber Leg Utility Medium Storage Unit Signal Interpreter Weapon Spread Laser Spread Laser Inventory Ion Engine Aluminum Leg Aluminum Leg Improved Heat Sink Large Storage Unit Transport Network Coupler EM Pulse Gun Mining Laser [Rating: 12] Favorites ----------- Power Ion Engine Engine Ion Engine Power Core Light Nuclear Core Propulsion Aluminum Leg Leg Aluminum Leg Utility Signal Interpreter Storage Medium Storage Unit Processor Signal Interpreter Weapon Spread Laser Energy Gun Spread Laser Ballistic Gun Assault Rifle Special Weapon Mining Laser Build | -11 -10 -10 ------- Run | Scr Mat Min Slots Evolved . | . . . Power . | . . . Propulsion . | . . . Utility . | . . . Weapon . | . . . Parts Attached 25 | 6 10 9 Power 3 | 1 . 2 Engine 2 | 1 . 1 Core 1 | . . 1 Reactor . | . . . Propulsion 6 | 2 . 4 Treads . | . . . Leg 6 | 2 . 4 Wheel . | . . . Hover . | . . . Flight . | . . . Utility 5 | 1 4 . Device . | . . . Storage 4 | 1 3 . Processor 1 | . 1 . Hackware . | . . . Protection . | . . . Artifact . | . . . Weapon 11 | 2 6 3 Energy Gun 8 | 1 5 2 Energy Cannon . | . . . Ballistic Gun 2 | 1 1 . Ballistic Cannon . | . . . Launcher . | . . . Special Weapon 1 | . . 1 Impact Weapon . | . . . Slashing Weapon . | . . . Piercing Weapon . | . . . Special Melee Weapon . | . . . Unidentified Prototypes . | . . . Parts Lost 3 | . 1 2 Power . | . . . Propulsion . | . . . Utility . | . . . Weapon 3 | . 1 2 Highest Loss Streak 2 | . 1 2 Average Slot Usage (%) 94 | . 98 91 Engine 12 | . 14 10 Core 2 | . . 3 Leg 28 | . 28 28 Storage 14 | . 14 14 Processor 13 | . 12 14 Energy Gun 21 | . 23 19 Ballistic Gun 1 | . 4 . Naked Turns . | . . . Heaviest Build 19 | 13 19 19 Greatest Support 25 | 20 20 25 Greatest Overweight (x) . | . . . Average Overweight (x) . | . . . Largest Inventory Capacity 10 | 6 10 8 Average Capacity 7 | 4 7 8 Most Carried 8 | 4 8 8 Average Carried 7 | 1 6 7 Final Capacity 8 | . . 8 Final Carried 8 | . . 8 Class Distribution -------------------- 80% | Mutant 19% | Scavenger-Mutant Dominant Class ---------------- Mutant | -10/Materials Mutant | -10/Mines Resources | -11 -10 -10 ----------- Run | Scr Mat Min Matter Collected 493 | 224 141 128 Remotely . | . . . Salvage Created 550 | . 251 299 Parts 29 | . 16 13 Haulers Intercepted 1 | . 1 . Recyclers Shooed 1 | . . 1 Parts Field Recycled . | . . . Retrieved Matter . | . . . Parts Self-Destructed . | . . . Prevented . | . . . Kills | -11 -10 -10 ------- Run | Scr Mat Min Combat Hostiles Destroyed 15 | . 7 8 Guns 13 | . 5 8 AOE 2 | . 2 . Classes Destroyed 7 | . 5 2 Worker 1 | . . 1 Builder 1 | . 1 . Hauler 1 | . 1 . Recycler 1 | . . 1 Watcher 1 | . 1 . Swarmer 7 | . 3 4 Grunt 8 | . 4 4 Best Kill Streak 4 | . 4 3 Combat Bots Only 3 | . 3 2 Max Kills in Single Turn 3 | . 3 1 Gunslinging . | . . . Exploded 2 | . 2 . Melee . | . . . Uniques/NPCs Destroyed . | . . . Combat | -11 -10 -10 -------- Run | Scr Mat Min Damage Taken 689 | . 260 429 Core 251 | . 75 176 Absorbed by Shields . | . . . Core Remaining (%) 100 | 100 . . Volleys Fired 55 | . 20 35 Largest 2 | . 2 2 Hottest 130 | . 130 130 Shots Fired 85 | . 35 50 Gun 83 | . 35 48 Cannon . | . . . Launcher . | . . . Special 2 | . . 2 Kinetic 16 | . 16 . Thermal 52 | . 18 34 Explosive . | . . . Electromagnetic 17 | . 1 16 Robot Hit Streak 9 | . 7 9 Robot Miss Streak 6 | . 4 6 Penetration Max . | . . . Secondary Targets 3 | . 1 2 Max Gunslinging Chain 1 | . 1 1 Shots Hit Robots 61 | . 22 39 Core Hits 56 | . 18 38 Critical Hits . | . . . Critical Kills . | . . . Critical Parts Destroyed . | . . . Melee Attacks . | . . . Impact . | . . . Slashing . | . . . Piercing . | . . . Sneak Attacks . | . . . Combat Hostiles . | . . . Follow-up Attacks . | . . . Damage Inflicted 1051 | . 622 429 Guns 754 | . 325 429 Cannons . | . . . Explosions 297 | . 297 . Melee . | . . . Ramming . | . . . Kinetic 151 | . 151 . Thermal 494 | . 192 302 Explosive 255 | . 255 . Electromagnetic 151 | . 24 127 Impact . | . . . Slashing . | . . . Piercing . | . . . Highest Corruption . | . . . Average Corruption . | . . . Corruption Purged . | . . . Overload Shots . | . . . Overflow Damage . | . . . Projectiles . | . . . Explosions . | . . . Melee . | . . . Knockbacks . | . . . Impact . | . . . Kinetic . | . . . Secondary . | . . . Self-Inflicted Damage . | . . . Shots . | . . . Rammed . | . . . Targets Rammed . | . . . Kicked . | . . . Crushed . | . . . Highest Temperature 483 | . 207 483 Average Temperature 117 | . 47 148 Received Heat Transfer 291 | . 126 165 Effects 8 | . . 8 Energy Bleed 1 | . . 1 Interference 2 | . . 2 Matter Decay 1 | . . 1 Damage (major) 4 | . . 4 Siege Activations . | . . . Robots Corrupted . | . . . Combat Hostiles . | . . . Parts Fried . | . . . Impact Corruptions . | . . . Robots Melted . | . . . Combat Hostiles . | . . . Parts Melted . | . . . Heat Transferred 682 | . 317 365 Parts Sabotaged . | . . . Parts Stolen . | . . . Parts Stripped . | . . . Power Chain Reactions 1 | . 1 . Missiles Intercepted . | . . . Alert | -11 -10 -10 ------- Run | Scr Mat Min Peak Influence 159 | . 159 142 Average Influence 57 | . 65 54 Maximum Alert Level . | . . . Low Security (%) 100 | . . . Level 1 . | . . . Level 2 . | . . . Level 3 . | . . . Level 4 . | . . . Level 5 . | . . . High Security . | . . . Max Security . | . . . Squads Dispatched 1 | . 1 . Investigation . | . . . Extermination . | . . . Reinforcement 1 | . 1 . Assault . | . . . Garrison . | . . . Intercept . | . . . Construction Impeded . | . . . Haulers Reinforced . | . . . Stealth | -11 -10 -10 --------- Run | Scr Mat Min Distress Signals 1 | . 1 . Communications Jammed . | . . . Distress Signals . | . . . Times Spotted 23 | . 9 14 Peak Tracking Total 3 | . 3 3 Tactical Retreats . | . . . Traps | -11 -10 -10 ------- Run | Scr Mat Min Traps Triggered . | . . . Indirectly . | . . . Trap Hack Attempts . | . . . Triggered . | . . . Disarmed . | . . . Reprogrammed . | . . . Reused . | . . . Traps Extracted . | . . . Installed . | . . . Triggered . | . . . Machines | -11 -10 -10 ---------- Run | Scr Mat Min Machines Disabled 3 | . 1 2 Max in Single Turn 1 | . 1 1 Machines Sabotaged . | . . . Garrisons Compromised . | . . . Overloaded Fab Kills . | . . . Fab Network Shutdowns . | . . . Hacking | -11 -10 -10 --------- Run | Scr Mat Min Machines Accessed 4 | . 4 . Terminals 4 | . 4 . Fabricators . | . . . Repair Stations . | . . . Recycling Units . | . . . Scanalyzers . | . . . Garrison Access . | . . . Total Hacks 7 | . 7 . Successful 7 | . 7 . Failed . | . . . Catastrophic . | . . . Database Lockouts . | . . . Manual 1 | . 1 . Terminals 7 | . 7 . Fabricators . | . . . Repair Stations . | . . . Recycling Units . | . . . Scanalyzers . | . . . Garrison Access . | . . . Terminal Hacks 7 | . 7 . Record 1 | . 1 . Alert Level 1 | . 1 . Dispatch Records 1 | . 1 . Recall Investigation 1 | . 1 . Recall Reinforcements 1 | . 1 . Zone Layout 2 | . 2 . Fabricator Hacks . | . . . Repair Station Hacks . | . . . Recycling Unit Hacks . | . . . Scanalyzer . | . . . Garrison Access Hacks . | . . . Unauthorized Hacks . | . . . Terminals . | . . . Fabricators . | . . . Repair Stations . | . . . Recycling Units . | . . . Scanalyzers . | . . . Garrison Access . | . . . Data Cores Recovered . | . . . Used . | . . . Hacking Detections 2 | . 2 . Full Trace Events . | . . . Feedback Events . | . . . Feedback Blocked . | . . . Robot Schematics Acquired . | . . . Robots Built . | . . . Matter . | . . . Time . | . . . Total Robot Build Rating . | . . . Part Schematics Acquired . | . . . Parts Built . | . . . Matter . | . . . Time . | . . . Total Part Build Rating . | . . . Parts Repaired . | . . . Time . | . . . Parts Recycled . | . . . Recycled Matter . | . . . Retrieved Matter . | . . . Retrieved Components . | . . . Parts Scanalyzed . | . . . Part Schematics Acquired . | . . . Parts Damaged . | . . . Bothacking | -11 -10 -10 ------------ Run | Scr Mat Min Used RIF Installer . | . . . Robots Hacked . | . . . Non-combat . | . . . Combat . | . . . Robot Hacks Applied . | . . . Relay Couplers Released . | . . . Robots Rewired . | . . . Allies Hacked . | . . . Hacks Repelled . | . . . Allies | -11 -10 -10 -------- Run | Scr Mat Min Total Allies 3 | . . 3 Largest Group 2 | . . 2 Highest-Rated Group 46 | . . 46 Highest-Rated Ally 31 | . . 31 Total Orders . | . . . Ally Attacks 16 | . . 16 Total Damage 270 | . . 270 Kills 5 | . . 5 Allies Corrupted . | . . . Allies Melted . | . . . Intel | -11 -10 -10 ------- Run | Scr Mat Min Robot Analysis Total . | . . . Derelict Logs Recovered 2 | . . 2 Drone Launches . | . . . Drone Recoveries . | . . . Exploration | -11 -10 -10 ------------- Run | Scr Mat Min Turns Passed 1874 | 55 808 1011 Spaces Moved 1322 | 47 579 696 Core 22 | 22 . . Treads . | . . . Legs 1300 | 25 579 696 Wheels . | . . . Hover . | . . . Flight . | . . . Fastest Speed 50 | 50 120 120 Average Speed 118 | 87 120 120 Slowest Speed 120 | 120 120 120 Overloaded Moves . | . . . Propulsion Burnouts . | . . . Robots Hopped . | . . . Cave-ins Triggered . | . . . Exploration Rate (%) 56 | 4 65 99 Regions Visited 2 Branch Regions 1 Pre-discovered Areas . | . . . Known Exits Taken 1 | . 1 . Unknown Exits Taken 1 | 1 . . Scrap Searched 1 | . . 1 Spaces Dug 2 | . . 2 Terrain Destroyed 21 | . 19 2 Melee . | . . . Projectile 2 | . . 2 AOE 19 | . 19 . Actions | -11 -10 -10 --------- Run | Scr Mat Min Total 1538 | 60 657 821 Wait 100 | 2 33 65 Move 1320 | 46 578 696 Hop . | . . . Pick Up 23 | 6 11 6 Fast Attach 3 | 1 1 1 Attach 9 | 5 3 1 Detach . | . . . Swap 13 | . 6 7 Drop 15 | . 5 10 Fire 55 | . 20 35 Melee . | . . . Ram . | . . . Kick . | . . . Crush . | . . . Escape Stasis . | . . . Rewire . | . . . Trap . | . . . Miscellaneous . | . . . Route ------- -11/Scrapyard -10/Materials (discovered 3 exits: *Mat x2 / *Min) -10/Mines (discovered 2 exits: *Mat x2) History --------- Turn | Location | Event 2 | -11/Scrapyard | Discovered new exit (range 16) 56 | -11/Scrapyard | Entered Materials 282 | -10/Materials | Discovered new exit (range 10) 321 | -10/Materials | Build established: Mutant 488 | -10/Materials | Discovered new exit (range 8) 510 | -10/Materials | Identified exit to Materials 854 | -10/Materials | Discovered new exit (range 9) 863 | -10/Materials | Identified exit to Mines 864 | -10/Materials | Entered Mines 873 | -10/Mines | Discovered exit to Materials (range 5) 876 | -10/Mines | Received a Mining Laser from a helpful Derelict 1261 | -10/Mines | Discovered exit to Materials (range 8) 1272 | -10/Mines | Core integrity fell below 50% 1418 | -10/Mines | Learned Materials terminal intel 1679 | -10/Mines | Core integrity fell below 20% 1803 | -10/Mines | Build established: Scavenger-Mutant 1875 | -10/Mines | Destroyed by S-10 Pest with Light Assault Rifle Last Messages --------------- 01505_ Acquired 10 matter. 01579_ G-47 Trooper destroyed. 01583_ Core Extractor disabled. 01593_ G-34 Mercenary destroyed. 01599_ Dropped Aluminum Leg. 01600_ Acquired 10 matter. 01603_ Dropped Aluminum Leg. 01605_ Acquired Aluminum Leg. 01612_ Dropped Ion Engine. 01612_ Acquired Lgt. Nuclear Core. 01616_ Acquired 10 matter. 01679_ Laser Drill disabled. 01681_ G-34 Mercenary destroyed. 01687_ G-47 Trooper destroyed. 01706_ Dropped Carbon-fiber Leg. 01706_ Acquired Aluminum Leg. 01708_ Acquired 10 matter. 01811_ Acquired derelict log, extracted data. Data stored: Mines entrances (x2). 01870_ S-10 Pest destroyed. Map ----- +----------------------------------------------------+ | < #?# """ ##??????????????????# *%=% #? | | ### """ #???????????????????#=""" #? | | ## """ ##??????????????????# """ #? | | # ### ##?????????????????# "" #? | | # #####???### ##????????????????# #? | | # #?????##### #????????????????#########? | | # #????## #?????????????????????????? | | # %###### #######???????????????????? | | # ## #???????????????????? | | # ####### ##### #???????????????????? | | ##### #########????## ##??# #???????????????????? | | ????# #????????????# #??# #???????????????????? | | ????# #???????????##%% #??# #?####??????????????? | | ????# #??????????## ##??# ### ####??###??????? | | ##### #?????????##% % #???# ## ##?# ##?????? | | % #????????## [ = ##???# ## #?# ##????? | | ##### #?###??###%* ! ##????# ## ### ##???? | | #???# ### ### [ #?????# ### ### ##??? | | #???# ##?????# ##### ### #??? | | #???# ## ####??????### #???# #??? | | ##??# ## ##??????????## #???# ### #??? | | ##?# ##??????###### ##??# ### ##?? | | ####### #???????# ##?# ## #?? | | #????### ##??????#** ### ## #?? | | % #??????## #??????#s%## ## ## < ##?? | | ##???????### #??????#g@### ### #####??? | | #??????????# #??????# #?#### ########????? | | #??????????# #??????# #????## #??????????? | | #??????????# #??????# #????## #??????????? | | ############ #??????# #???## ######?????? | | %= #??????# #???# #?????? | | !########### #??????#z #??# #?????? | | #????####?# #####??# t#??# ###### #?????? | | # #???## ### ##?# #??## #????# #?????? | | ####???# ### #???#######????# #?????? | | ???????# #??????????????# #?????? | | ???????## #??????????????# ##????? | | ????????## ### #####??????????##### ##???? | | ?????????####?## ##??????????# #???? | | ???????????????## #?????????# #???? | | ????????????????## #?????????# #???? | | ?????????????????# ##?????????## #???? | | ?????????????????## ####???????????### ##???? | | ??????????????????#####????????????????## ##????? | | ?????????????????????????????????????????###?????? | | ?????????????????????????????????????????????????? | | | | | | | | | +----------------------------------------------------+ Best States ------------- Heat Dissipation 25 Energy Generation 14 Energy Capacity 250 Matter Stores 300 Matter Capacity 300 Sight Range 16 Terrain Scan Density 10 Evasion (%) 50 Item Schematics ----------------- None Robot Schematics ------------------ None Fabricated ------------ Nothing Alien Tech Used ----------------- None Achievements -------------- More Dakka Please Challenges ------------ None Game ------ Seed HardcellLegNegator Manual? 0 Play Time 00:15:25 Cumulative 9.6 hours Start 2019.10.21 @ 22:22:14 End 2019.10.21 @ 22:37:29 Sessions 1 Manual Loads 0 Difficulty Rogue Special Mode None Game No. 24 Rogue 24 Adventurer 0 Explorer 0 Win Type - Total 0 Types 0/0/0/0/0/0/0 Lore% 16 Gallery% 17 Achievement% 16 Wizard Run 0 Options --------- ASCII 0 Keyboard 0 Movement Mouse Keybinds 0 Fullscreen 2 Font 16/Terminus Map View 76x50 Tactical HUD 1 Map Filters NONE Filters NONE Steam 1 RUN: 6f905f32-4cb6-4dde-aab6-c1491cb6292a